Date-Occurred,Department,Supplier,Net,Purpose,Merchant-Category
27/02/2017,Premises Management,LLOYD & JONES ENGINEER,23.15,Repair & Maintenance,Building Services
28/02/2017,Premises Management,EDMUNDSON ELECTRIC,14.17,Repair & Maintenance,Building Services
28/02/2017,Premises Management,EDMUNDSON ELECTRIC,161.03,Repair & Maintenance,Building Services
28/02/2017,Premises Management,EDMUNDSON ELECTRIC,1.50,Repair & Maintenance,Building Services
28/02/2017,Premises Management,SPARES CENTRE LTD,372.73,Repair & Maintenance,Building Services
28/02/2017,Premises Management,NEWEY & EYRE,24.72,Repair & Maintenance,Building Services
28/02/2017,Premises Management,EDMUNDSON ELECTRIC,28.57,Repair & Maintenance,Building Services
28/02/2017,Premises Management,EDMUNDSON ELECTRIC,8.44,Repair & Maintenance,Building Services
28/02/2017,Premises Management,EDMUNDSON ELECTRIC,4.88,Repair & Maintenance,Building Services
28/02/2017,Premises Management,EDMUNDSON ELECTRIC,59.51,Repair & Maintenance,Building Services
01/03/2017,Premises Management,HIRE AND SAFETY UK LTD,81.22,Repair & Maintenance,Building Services
01/03/2017,Premises Management,CITY PLUMBING SUPP,219.29,Repair & Maintenance,Building Services
01/03/2017,Premises Management,PIPE/CLIMATE CENTER ZK,40.99,Repair & Maintenance,Building Services
01/03/2017,Premises Management,PIPE/CLIMATE CENTER ZK,277.08,Repair & Maintenance,Building Services
01/03/2017,Premises Management,PIPE/CLIMATE CENTER ZK,14.58,Repair & Maintenance,Building Services
01/03/2017,Premises Management,THE FUSE COMPANY,76.07,Repair & Maintenance,Building Services
01/03/2017,Premises Management,PIPE/CLIMATE CENTER ZK,58.50,Repair & Maintenance,Building Services
01/03/2017,Premises Management,PIPE/CLIMATE CENTER ZK,74.49,Repair & Maintenance,Building Services
01/03/2017,Premises Management,PIPE/CLIMATE CENTER ZK,813.24,Repair & Maintenance,Building Services
01/03/2017,Premises Management,PIPE/CLIMATE CENTER ZK,"1,644.64",Repair & Maintenance,Building Services
01/03/2017,Premises Management,PIPE/CLIMATE CENTER ZK,233.17,Repair & Maintenance,Building Services
01/03/2017,Premises Management,NEWEY & EYRE,28.62,Repair & Maintenance,Building Services
01/03/2017,Premises Management,NEWEY & EYRE,35.34,Repair & Maintenance,Building Services
01/03/2017,Premises Management,CROSSLING CMB LTD,52.86,Repair & Maintenance,Building Services
01/03/2017,Premises Management,CROSSLING CMB LTD,8.71,Repair & Maintenance,Building Services
01/03/2017,Premises Management,CHADWICKS,11.00,Repair & Maintenance,Building Services
01/03/2017,Premises Management,TARGET ELECTRICAL SUPP,120.17,Repair & Maintenance,Building Services
01/03/2017,Premises Management,EDMUNDSON ELECTRIC,27.88,Repair & Maintenance,Building Services
01/03/2017,Premises Management,MARSHALLS,29.17,Repair & Maintenance,Building Services
01/03/2017,Premises Management,ONE STOP HIRE LIVERP,50.00,Repair & Maintenance,Building Services
01/03/2017,Premises Management,ONE STOP HIRE LIVERP,78.60,Repair & Maintenance,Building Services
01/03/2017,Premises Management,ASDA SUPERSTORE,16.67,Repair & Maintenance,Building Services
01/03/2017,Premises Management,J BEATTIE & SON LT,19.55,Repair & Maintenance,Building Services
01/03/2017,Premises Management,J BEATTIE & SON LT,39.17,Repair & Maintenance,Building Services
01/03/2017,Premises Management,ADI-GARDINER LTD,12.49,Repair & Maintenance,Building Services
01/03/2017,Premises Management,TOOLSTATION LTD,2.63,Repair & Maintenance,Building Services
01/03/2017,Premises Management,TASKERS WAVERTREE,66.58,Repair & Maintenance,Building Services
01/03/2017,Premises Management,TASKERS WAVERTREE,6.94,Repair & Maintenance,Building Services
01/03/2017,Premises Management,TASKERS WAVERTREE,11.10,Repair & Maintenance,Building Services
01/03/2017,Premises Management,THE KEY BAR,8.13,Repair & Maintenance,Building Services
01/03/2017,Premises Management,MAPLIN LIVERPOOL L7,6.94,Repair & Maintenance,Building Services
01/03/2017,Premises Management,LIVERPOOL (CCF),83.38,Repair & Maintenance,Building Services
01/03/2017,Premises Management,BEERS BOUNDARY STREET,9.43,Repair & Maintenance,Building Services
01/03/2017,Premises Management,LLOYD & JONES ENGINEER,13.57,Repair & Maintenance,Building Services
02/03/2017,Premises Management,TOOLSTATION LTD,10.24,Repair & Maintenance,Building Services
02/03/2017,Premises Management,MAPLIN AINTREE L9,6.92,Repair & Maintenance,Building Services
02/03/2017,Premises Management,WWW.CERTSURE.COM,370.83,Repair & Maintenance,Building Services
02/03/2017,Premises Management,NEWEY & EYRE,24.51,Repair & Maintenance,Building Services
02/03/2017,Premises Management,PIPE/CLIMATE CENTER ZK,121.69,Repair & Maintenance,Building Services
02/03/2017,Premises Management,ADI-GARDINER LTD,65.42,Repair & Maintenance,Building Services
02/03/2017,Premises Management,NEWEY & EYRE,5.08,Repair & Maintenance,Building Services
02/03/2017,Premises Management,CROSSLING CMB LTD,23.08,Repair & Maintenance,Building Services
02/03/2017,Premises Management,York And Young Ltd,6.94,Repair & Maintenance,Building Services
02/03/2017,Premises Management,BEERS BOUNDARY STREET,40.66,Repair & Maintenance,Building Services
02/03/2017,Premises Management,PIPE/CLIMATE CENTER ZK,126.72,Repair & Maintenance,Building Services
02/03/2017,Premises Management,SCREWFIX,6.24,Repair & Maintenance,Building Services
02/03/2017,Premises Management,KEN KNIGHT (NW) LTD,250.00,Repair & Maintenance,Building Services
02/03/2017,Premises Management,RINUS ROOFING SUPPLIES,30.34,Repair & Maintenance,Building Services
02/03/2017,Premises Management,BEERS BOUNDARY STREET,43.19,Repair & Maintenance,Building Services
02/03/2017,Premises Management,BREWERS,52.78,Repair & Maintenance,Building Services
02/03/2017,Premises Management,TASKERS WAVERTREE,23.60,Repair & Maintenance,Building Services
03/03/2017,Premises Management,PIPE/CLIMATE CENTER ZK,181.78,Repair & Maintenance,Building Services
03/03/2017,Premises Management,PIPE/CLIMATE CENTER ZK,493.83,Repair & Maintenance,Building Services
03/03/2017,Premises Management,NEWEY & EYRE,36.70,Repair & Maintenance,Building Services
03/03/2017,Premises Management,CITY PLUMBING SUPP,902.65,Repair & Maintenance,Building Services
03/03/2017,Premises Management,ADI-GARDINER LTD,837.03,Repair & Maintenance,Building Services
03/03/2017,Premises Management,NEWEY & EYRE,29.42,Repair & Maintenance,Building Services
03/03/2017,Premises Management,NEWEY & EYRE,402.97,Repair & Maintenance,Building Services
03/03/2017,Premises Management,TAYLORGLASS LTD,395.83,Repair & Maintenance,Building Services
03/03/2017,Premises Management,TAYLORGLASS LTD,255.83,Repair & Maintenance,Building Services
03/03/2017,Premises Management,TAYLORGLASS LTD,154.17,Repair & Maintenance,Building Services
03/03/2017,Premises Management,TAYLORGLASS LTD,43.58,Repair & Maintenance,Building Services
03/03/2017,Premises Management,TAYLORGLASS LTD,198.00,Repair & Maintenance,Building Services
03/03/2017,Premises Management,TAYLORGLASS LTD,246.67,Repair & Maintenance,Building Services
03/03/2017,Premises Management,TAYLORGLASS LTD,99.46,Repair & Maintenance,Building Services
03/03/2017,Premises Management,TAYLORGLASS LTD,14.58,Repair & Maintenance,Building Services
03/03/2017,Premises Management,TAYLORGLASS LTD,117.50,Repair & Maintenance,Building Services
03/03/2017,Premises Management,TAYLORGLASS LTD,420.83,Repair & Maintenance,Building Services
03/03/2017,Premises Management,J BEATTIE & SON LT,10.49,Repair & Maintenance,Building Services
03/03/2017,Premises Management,J BEATTIE & SON LT,24.49,Repair & Maintenance,Building Services
03/03/2017,Premises Management,J BEATTIE & SON LT,12.33,Repair & Maintenance,Building Services
03/03/2017,Premises Management,J BEATTIE & SON LT,10.49,Repair & Maintenance,Building Services
03/03/2017,Premises Management,J BEATTIE & SON LT,49.65,Repair & Maintenance,Building Services
03/03/2017,Premises Management,J BEATTIE & SON LT,35.00,Repair & Maintenance,Building Services
03/03/2017,Premises Management,J BEATTIE & SON LT,11.75,Repair & Maintenance,Building Services
03/03/2017,Premises Management,J BEATTIE & SON LT,34.72,Repair & Maintenance,Building Services
03/03/2017,Premises Management,J BEATTIE & SON LT,39.17,Repair & Maintenance,Building Services
03/03/2017,Premises Management,J BEATTIE & SON LT,9.88,Repair & Maintenance,Building Services
03/03/2017,Premises Management,J BEATTIE & SON LT,20.92,Repair & Maintenance,Building Services
03/03/2017,Premises Management,J BEATTIE & SON LT,10.49,Repair & Maintenance,Building Services
03/03/2017,Premises Management,EYRE & ELLISTON LTD,6.00,Repair & Maintenance,Building Services
03/03/2017,Premises Management,MERSEYSIDE ELECTRICAL,25.00,Repair & Maintenance,Building Services
03/03/2017,Premises Management,MERSEYSIDE ELECTRICAL,30.83,Repair & Maintenance,Building Services
03/03/2017,Premises Management,TARGET ELECTRICAL SUPP,34.25,Repair & Maintenance,Building Services
03/03/2017,Premises Management,DULUX DECORATOR CENTRE,74.21,Repair & Maintenance,Building Services
03/03/2017,Premises Management,MARL COATINGS LTD,65.95,Repair & Maintenance,Building Services
03/03/2017,Premises Management,PAYPAL  WU TANGNING,9.39,Repair & Maintenance,Building Services
03/03/2017,Premises Management,SPARES CENTRE LTD,78.82,Repair & Maintenance,Building Services
03/03/2017,Premises Management,SPARES CENTRE LTD,157.93,Repair & Maintenance,Building Services
03/03/2017,Premises Management,SPARES CENTRE LTD,25.33,Repair & Maintenance,Building Services
03/03/2017,Premises Management,EDMUNDSON ELECTRIC,6.10,Repair & Maintenance,Building Services
03/03/2017,Premises Management,TASKERS WAVERTREE,31.23,Repair & Maintenance,Building Services
03/03/2017,Premises Management,TASKERS WAVERTREE,10.41,Repair & Maintenance,Building Services
06/03/2017,Premises Management,PIPE/CLIMATE CENTER ZK,221.55,Repair & Maintenance,Building Services
06/03/2017,Premises Management,SPARES CENTRE LTD,41.67,Repair & Maintenance,Building Services
06/03/2017,Premises Management,CITY PLUMBING SUPP,260.03,Repair & Maintenance,Building Services
06/03/2017,Premises Management,CROSSLING CMB LTD,15.86,Repair & Maintenance,Building Services
06/03/2017,Premises Management,TOOLSTATION LTD,14.22,Repair & Maintenance,Building Services
06/03/2017,Premises Management,TOOLSTATION LTD,5.39,Repair & Maintenance,Building Services
06/03/2017,Premises Management,NEWEY & EYRE,8.69,Repair & Maintenance,Building Services
06/03/2017,Premises Management,MERSEYSIDE ELECTRICAL,95.83,Repair & Maintenance,Building Services
06/03/2017,Premises Management,CITY PLUMBING SUPP,80.74,Repair & Maintenance,Building Services
06/03/2017,Premises Management,CROSSLING CMB LTD,21.50,Repair & Maintenance,Building Services
06/03/2017,Premises Management,MERSEYSIDE ELECTRICAL,102.75,Repair & Maintenance,Building Services
06/03/2017,Premises Management,MERSEYSIDE ELECTRICAL,62.17,Repair & Maintenance,Building Services
06/03/2017,Premises Management,CHESTNUT BUILDING CENT,6.75,Repair & Maintenance,Building Services
06/03/2017,Premises Management,ADI-GARDINER LTD,119.17,Repair & Maintenance,Building Services
06/03/2017,Premises Management,TOOLSTATION LTD,8.61,Repair & Maintenance,Building Services
06/03/2017,Premises Management,ADI-GARDINER LTD,71.58,Repair & Maintenance,Building Services
06/03/2017,Premises Management,MAPLIN AINTREE L9,8.33,Repair & Maintenance,Building Services
06/03/2017,Premises Management,LLOYD & JONES ENGINEER,54.38,Repair & Maintenance,Building Services
07/03/2017,Premises Management,RINUS ROOFING SUPPLIES,19.96,Repair & Maintenance,Building Services
07/03/2017,Premises Management,RINUS ROOFING SUPPLIES,32.92,Repair & Maintenance,Building Services
07/03/2017,Premises Management,CROSSLING CMB LTD,74.92,Repair & Maintenance,Building Services
07/03/2017,Premises Management,CROSSLING CMB LTD,34.59,Repair & Maintenance,Building Services
07/03/2017,Premises Management,CROSSLING CMB LTD,208.79,Repair & Maintenance,Building Services
07/03/2017,Premises Management,NEWEY & EYRE,68.75,Repair & Maintenance,Building Services
07/03/2017,Premises Management,CROSSLING CMB LTD,12.42,Repair & Maintenance,Building Services
07/03/2017,Premises Management,CROSSLING CMB LTD,9.60,Repair & Maintenance,Building Services
07/03/2017,Premises Management,THOMAS AND NELSON,3.51,Repair & Maintenance,Building Services
07/03/2017,Premises Management,LLOYD & JONES ENGINEER,8.33,Repair & Maintenance,Building Services
07/03/2017,Premises Management,ADI-GARDINER LTD,318.33,Repair & Maintenance,Building Services
07/03/2017,Premises Management,BSS GROUP PLC,101.74,Repair & Maintenance,Building Services
07/03/2017,Premises Management,CITY PLUMBING SUPP,157.01,Repair & Maintenance,Building Services
07/03/2017,Premises Management,CU-PLAS SUPPLIES LIMIT,5.08,Repair & Maintenance,Building Services
07/03/2017,Premises Management,CU-PLAS SUPPLIES LIMIT,58.86,Repair & Maintenance,Building Services
07/03/2017,Premises Management,TARGET ELECTRICAL SUPP,23.33,Repair & Maintenance,Building Services
07/03/2017,Premises Management,TOOLSTATION LTD,8.64,Repair & Maintenance,Building Services
07/03/2017,Premises Management,RINUS ROOFING SUPPLIES,67.04,Repair & Maintenance,Building Services
07/03/2017,Premises Management,PAYPAL  LETIANQIANG,23.60,Repair & Maintenance,Building Services
07/03/2017,Premises Management,BEERS BOUNDARY STREET,18.00,Repair & Maintenance,Building Services
07/03/2017,Premises Management,J BEATTIE & SON LT,38.45,Repair & Maintenance,Building Services
07/03/2017,Premises Management,SCREWFIX,16.69,Repair & Maintenance,Building Services
07/03/2017,Premises Management,SCREWFIX,13.88,Repair & Maintenance,Building Services
07/03/2017,Premises Management,PLUMB CENTER NS,14.03,Repair & Maintenance,Building Services
08/03/2017,Premises Management,CITY PLUMBING SUPP,10.58,Repair & Maintenance,Building Services
08/03/2017,Premises Management,CITY PLUMBING SUPP,202.71,Repair & Maintenance,Building Services
08/03/2017,Premises Management,SCREWFIX,34.72,Repair & Maintenance,Building Services
08/03/2017,Premises Management,EDMUNDSON ELECTRIC,"1,180.03",Repair & Maintenance,Building Services
08/03/2017,Premises Management,EDMUNDSON ELECTRIC,"1,509.01",Repair & Maintenance,Building Services
08/03/2017,Premises Management,EYRE & ELLISTON LTD,23.67,Repair & Maintenance,Building Services
08/03/2017,Premises Management,CROSSLING CMB LTD,397.81,Repair & Maintenance,Building Services
08/03/2017,Premises Management,CROSSLING CMB LTD,7.70,Repair & Maintenance,Building Services
08/03/2017,Premises Management,CROSSLING CMB LTD,14.99,Repair & Maintenance,Building Services
08/03/2017,Premises Management,MERSEYSIDE ELECTRICAL,86.21,Repair & Maintenance,Building Services
08/03/2017,Premises Management,EDMUNDSON ELECTRIC,108.53,Repair & Maintenance,Building Services
08/03/2017,Premises Management,NOCHEX-NATIONWIDE WORK,80.00,Repair & Maintenance,Building Services
08/03/2017,Premises Management,ADI-GARDINER LTD,30.53,Repair & Maintenance,Building Services
08/03/2017,Premises Management,DULUX DECORATOR CENTRE,31.61,Repair & Maintenance,Building Services
08/03/2017,Premises Management,MAPLIN LIVERPOOL L1,11.80,Repair & Maintenance,Building Services
08/03/2017,Premises Management,J BEATTIE & SON LT,49.38,Repair & Maintenance,Building Services
08/03/2017,Premises Management,TASKERS AINTREE,9.53,Repair & Maintenance,Building Services
08/03/2017,Premises Management,TASKERS AINTREE,12.06,Repair & Maintenance,Building Services
08/03/2017,Premises Management,CHADWICKS,72.50,Repair & Maintenance,Building Services
08/03/2017,Premises Management,HUWS GRAY LIMITED,19.19,Repair & Maintenance,Building Services
08/03/2017,Premises Management,HUWS GRAY LIMITED,42.73,Repair & Maintenance,Building Services
09/03/2017,Premises Management,TOOLSTATION LTD,7.67,Repair & Maintenance,Building Services
09/03/2017,Premises Management,PIPE/CLIMATE CENTER ZK,304.94,Repair & Maintenance,Building Services
09/03/2017,Premises Management,SCREWFIX,24.96,Repair & Maintenance,Building Services
09/03/2017,Premises Management,BROAG LTD,"2,097.07",Repair & Maintenance,Building Services
09/03/2017,Premises Management,York And Young Ltd,4.74,Repair & Maintenance,Building Services
09/03/2017,Premises Management,ADI-GARDINER LTD,14.99,Repair & Maintenance,Building Services
09/03/2017,Premises Management,ADI-GARDINER LTD,149.78,Repair & Maintenance,Building Services
09/03/2017,Premises Management,BEERS BOUNDARY STREET,10.95,Repair & Maintenance,Building Services
09/03/2017,Premises Management,J BEATTIE & SON LT,78.33,Repair & Maintenance,Building Services
09/03/2017,Premises Management,J BEATTIE & SON LT,49.38,Repair & Maintenance,Building Services
09/03/2017,Premises Management,J BEATTIE & SON LT,9.88,Repair & Maintenance,Building Services
09/03/2017,Premises Management,J BEATTIE & SON LT,7.25,Repair & Maintenance,Building Services
09/03/2017,Premises Management,BSS GROUP PLC,128.74,Repair & Maintenance,Building Services
09/03/2017,Premises Management,PIPE/CLIMATE CENTER ZK,27.54,Repair & Maintenance,Building Services
09/03/2017,Premises Management,J BEATTIE & SON LT,88.54,Repair & Maintenance,Building Services
09/03/2017,Premises Management,J BEATTIE & SON LT,98.75,Repair & Maintenance,Building Services
09/03/2017,Premises Management,RINUS ROOFING SUPPLIES,77.04,Repair & Maintenance,Building Services
09/03/2017,Premises Management,ADI-GARDINER LTD,16.67,Repair & Maintenance,Building Services
09/03/2017,Premises Management,ALARM SUPPLIES SCOTLAN,45.83,Repair & Maintenance,Building Services
09/03/2017,Premises Management,MERSEYSIDE ELECTRICAL,26.25,Repair & Maintenance,Building Services
09/03/2017,Premises Management,BEERS BOUNDARY STREET,38.26,Repair & Maintenance,Building Services
09/03/2017,Premises Management,LLOYD & JONES ENGINEER,25.26,Repair & Maintenance,Building Services
10/03/2017,Premises Management,BEESLEY & FILDES,15.72,Repair & Maintenance,Building Services
10/03/2017,Premises Management,ADI-GARDINER LTD,164.99,Repair & Maintenance,Building Services
10/03/2017,Premises Management,MERSEYSIDE ELECTRICAL,104.00,Repair & Maintenance,Building Services
10/03/2017,Premises Management,MERSEYSIDE ELECTRICAL,87.46,Repair & Maintenance,Building Services
10/03/2017,Premises Management,MERSEYSIDE ELECTRICAL,96.46,Repair & Maintenance,Building Services
10/03/2017,Premises Management,MERSEYSIDE ELECTRICAL,96.46,Repair & Maintenance,Building Services
10/03/2017,Premises Management,MERSEYSIDE ELECTRICAL,31.25,Repair & Maintenance,Building Services
10/03/2017,Premises Management,SCREWFIX,24.29,Repair & Maintenance,Building Services
10/03/2017,Premises Management,CITY PLUMBING SUPP,19.97,Repair & Maintenance,Building Services
10/03/2017,Premises Management,CROSSLING CMB LTD,19.61,Repair & Maintenance,Building Services
10/03/2017,Premises Management,TARGET ELECTRICAL SUPP,23.33,Repair & Maintenance,Building Services
10/03/2017,Premises Management,TOOLSTATION LTD,14.58,Repair & Maintenance,Building Services
10/03/2017,Premises Management,CU-PLAS SUPPLIES LIMIT,6.45,Repair & Maintenance,Building Services
10/03/2017,Premises Management,R HASTINGS AND SON CONT L,52.00,Repair & Maintenance,Building Services
10/03/2017,Premises Management,R HASTINGS AND SON CONT L,27.04,Repair & Maintenance,Building Services
10/03/2017,Premises Management,EDMUNDSON ELECTRIC,73.62,Repair & Maintenance,Building Services
10/03/2017,Premises Management,EDMUNDSON ELECTRIC,3.33,Repair & Maintenance,Building Services
10/03/2017,Premises Management,KEN KNIGHT (NW) LTD,204.17,Repair & Maintenance,Building Services
10/03/2017,Premises Management,KEN KNIGHT (NW) LTD,225.00,Repair & Maintenance,Building Services
10/03/2017,Premises Management,SCREWFIX,14.37,Repair & Maintenance,Building Services
10/03/2017,Premises Management,EDMUNDSON ELECTRIC,79.00,Repair & Maintenance,Building Services
10/03/2017,Premises Management,EDMUNDSON ELECTRIC,30.08,Repair & Maintenance,Building Services
10/03/2017,Premises Management,CHADWICKS,32.53,Repair & Maintenance,Building Services
11/03/2017,Premises Management,TASKERS AINTREE,38.13,Repair & Maintenance,Building Services
13/03/2017,Premises Management,ADI-GARDINER LTD,13.13,Repair & Maintenance,Building Services
13/03/2017,Premises Management,MAPLIN AINTREE L9,15.97,Repair & Maintenance,Building Services
13/03/2017,Premises Management,SMITHDOWN ELECTRICAL W,10.50,Repair & Maintenance,Building Services
13/03/2017,Premises Management,NEWEY & EYRE,56.42,Repair & Maintenance,Building Services
13/03/2017,Premises Management,NEWEY & EYRE,14.42,Repair & Maintenance,Building Services
13/03/2017,Premises Management,NEWEY & EYRE,18.84,Repair & Maintenance,Building Services
13/03/2017,Premises Management,COMPASS BEARING ENGINE,69.21,Repair & Maintenance,Building Services
13/03/2017,Premises Management,CROSSLING CMB LTD,13.16,Repair & Maintenance,Building Services
13/03/2017,Premises Management,PIPE/CLIMATE CENTER ZK,52.15,Repair & Maintenance,Building Services
13/03/2017,Premises Management,York And Young Ltd,9.49,Repair & Maintenance,Building Services
13/03/2017,Premises Management,BSS GROUP PLC,16.41,Repair & Maintenance,Building Services
13/03/2017,Premises Management,CHADWICKS,21.58,Repair & Maintenance,Building Services
13/03/2017,Premises Management,MERSEYSIDE ELECTRICAL,103.08,Repair & Maintenance,Building Services
13/03/2017,Premises Management,MERSEYSIDE ELECTRICAL,65.71,Repair & Maintenance,Building Services
13/03/2017,Premises Management,MERSEYSIDE ELECTRICAL,91.67,Repair & Maintenance,Building Services
13/03/2017,Premises Management,LIVERPOOL (CCF),55.59,Repair & Maintenance,Building Services
13/03/2017,Premises Management,EDMUNDSON ELECTRIC,46.01,Repair & Maintenance,Building Services
13/03/2017,Premises Management,EDMUNDSON ELECTRIC,35.78,Repair & Maintenance,Building Services
13/03/2017,Premises Management,EDMUNDSON ELECTRIC,8.68,Repair & Maintenance,Building Services
13/03/2017,Premises Management,EDMUNDSON ELECTRIC,82.28,Repair & Maintenance,Building Services
13/03/2017,Premises Management,ADI-GARDINER LTD,201.74,Repair & Maintenance,Building Services
13/03/2017,Premises Management,B & Q 1132,25.18,Repair & Maintenance,Building Services
14/03/2017,Premises Management,B.E.S. ELECTRICAL WHOL,233.33,Repair & Maintenance,Building Services
14/03/2017,Premises Management,B.E.S. ELECTRICAL WHOL,-569.00,Repair & Maintenance,Building Services
14/03/2017,Premises Management,B.E.S. ELECTRICAL WHOL,350.00,Repair & Maintenance,Building Services
14/03/2017,Premises Management,B.E.S. ELECTRICAL WHOL,233.33,Repair & Maintenance,Building Services
14/03/2017,Premises Management,EDMUNDSON ELECTRIC,"1,146.67",Repair & Maintenance,Building Services
14/03/2017,Premises Management,ADI-GARDINER LTD,32.50,Repair & Maintenance,Building Services
14/03/2017,Premises Management,PARTS CENTER 3H,195.33,Repair & Maintenance,Building Services
14/03/2017,Premises Management,B & Q 1297,18.60,Repair & Maintenance,Building Services
14/03/2017,Premises Management,LIVERPOOL (CCF),78.12,Repair & Maintenance,Building Services
14/03/2017,Premises Management,NEWEY & EYRE,20.03,Repair & Maintenance,Building Services
14/03/2017,Premises Management,CHADWICKS,72.50,Repair & Maintenance,Building Services
14/03/2017,Premises Management,CROSSLING CMB LTD,104.85,Repair & Maintenance,Building Services
14/03/2017,Premises Management,NEWEY & EYRE,42.08,Repair & Maintenance,Building Services
14/03/2017,Premises Management,NORTHERN REFRIGERATION,78.52,Repair & Maintenance,Building Services
14/03/2017,Premises Management,CROSSLING CMB LTD,10.83,Repair & Maintenance,Building Services
14/03/2017,Premises Management,TARGET ELECTRICAL SUPP,3.82,Repair & Maintenance,Building Services
14/03/2017,Premises Management,TOOLSTATION LTD,23.33,Repair & Maintenance,Building Services
14/03/2017,Premises Management,DULUX DECORATOR CENTRE,210.51,Repair & Maintenance,Building Services
14/03/2017,Premises Management,EDMUNDSON ELECTRIC,343.37,Repair & Maintenance,Building Services
14/03/2017,Premises Management,EDMUNDSON ELECTRIC,104.17,Repair & Maintenance,Building Services
14/03/2017,Premises Management,RINUS ROOFING SUPPLIES,39.58,Repair & Maintenance,Building Services
14/03/2017,Premises Management,ADI-GARDINER LTD,85.33,Repair & Maintenance,Building Services
14/03/2017,Premises Management,TOOLSTATION LTD,5.42,Repair & Maintenance,Building Services
14/03/2017,Premises Management,TAYLORGLASS LTD,149.17,Repair & Maintenance,Building Services
14/03/2017,Premises Management,BEERS BOUNDARY STREET,27.97,Repair & Maintenance,Building Services
14/03/2017,Premises Management,BEERS BOUNDARY STREET,14.17,Repair & Maintenance,Building Services
14/03/2017,Premises Management,TASKERS WAVERTREE,12.48,Repair & Maintenance,Building Services
14/03/2017,Premises Management,TP LIVERPOOL,36.78,Repair & Maintenance,Building Services
15/03/2017,Premises Management,B.E.S. ELECTRICAL WHOL,700.00,Repair & Maintenance,Building Services
15/03/2017,Premises Management,B.E.S. ELECTRICAL WHOL,233.33,Repair & Maintenance,Building Services
15/03/2017,Premises Management,EDMUNDSON ELECTRIC,247.03,Repair & Maintenance,Building Services
15/03/2017,Premises Management,EDMUNDSON ELECTRIC,40.53,Repair & Maintenance,Building Services
15/03/2017,Premises Management,EDMUNDSON ELECTRIC,15.34,Repair & Maintenance,Building Services
15/03/2017,Premises Management,RINUS ROOFING SUPPLIES,24.13,Repair & Maintenance,Building Services
15/03/2017,Premises Management,CITY PLUMBING SUPP,68.33,Repair & Maintenance,Building Services
15/03/2017,Premises Management,JUST PROJECTORS,831.67,Repair & Maintenance,Building Services
15/03/2017,Premises Management,MAPLIN LIVERPOOL L1,13.88,Repair & Maintenance,Building Services
15/03/2017,Premises Management,MAPLIN LIVERPOOL L1,13.92,Repair & Maintenance,Building Services
15/03/2017,Premises Management,PIPE/CLIMATE CENTER ZK,84.04,Repair & Maintenance,Building Services
15/03/2017,Premises Management,PIPE/CLIMATE CENTER ZK,"1,011.57",Repair & Maintenance,Building Services
15/03/2017,Premises Management,CHADWICKS,36.63,Repair & Maintenance,Building Services
15/03/2017,Premises Management,NEWEY & EYRE,19.75,Repair & Maintenance,Building Services
15/03/2017,Premises Management,NEWEY & EYRE,11.03,Repair & Maintenance,Building Services
15/03/2017,Premises Management,COMBINED CATERING SERV,12.50,Repair & Maintenance,Building Services
15/03/2017,Premises Management,CROSSLING CMB LTD,14.45,Repair & Maintenance,Building Services
15/03/2017,Premises Management,BEERS BOUNDARY STREET,5.61,Repair & Maintenance,Building Services
15/03/2017,Premises Management,BEERS BOUNDARY STREET,25.15,Repair & Maintenance,Building Services
15/03/2017,Premises Management,PRESCOTTS ARCHITECTURAL,68.24,Repair & Maintenance,Building Services
15/03/2017,Premises Management,CROSSLING CMB LTD,23.83,Repair & Maintenance,Building Services
15/03/2017,Premises Management,THE FUSE COMPANY,13.17,Repair & Maintenance,Building Services
15/03/2017,Premises Management,COMMS EXP,331.92,Repair & Maintenance,Building Services
15/03/2017,Premises Management,B & Q 1132,26.58,Repair & Maintenance,Building Services
15/03/2017,Premises Management,JOSEPH PARR LTD,24.15,Repair & Maintenance,Building Services
15/03/2017,Premises Management,RAPID,7.82,Repair & Maintenance,Building Services
16/03/2017,Premises Management,HIRE AND SAFETY UK LTD,75.46,Repair & Maintenance,Building Services
16/03/2017,Premises Management,EDMUNDSON ELECTRIC,46.08,Repair & Maintenance,Building Services
16/03/2017,Premises Management,EDMUNDSON ELECTRIC,102.93,Repair & Maintenance,Building Services
16/03/2017,Premises Management,EDMUNDSON ELECTRIC,235.42,Repair & Maintenance,Building Services
16/03/2017,Premises Management,CLICKATELL LTD,58.34,Repair & Maintenance,Building Services
16/03/2017,Premises Management,EDMUNDSON ELECTRIC,458.33,Repair & Maintenance,Building Services
16/03/2017,Premises Management,LLOYD & JONES ENGINEER,54.51,Repair & Maintenance,Building Services
16/03/2017,Premises Management,COMBINED CATERING SERV,244.28,Repair & Maintenance,Building Services
16/03/2017,Premises Management,CROSSLING CMB LTD,1.78,Repair & Maintenance,Building Services
16/03/2017,Premises Management,CROSSLING CMB LTD,151.74,Repair & Maintenance,Building Services
16/03/2017,Premises Management,CROSSLING CMB LTD,14.99,Repair & Maintenance,Building Services
16/03/2017,Premises Management,LLOYD & JONES ENGINEER,6.86,Repair & Maintenance,Building Services
16/03/2017,Premises Management,BEERS BOUNDARY STREET,25.01,Repair & Maintenance,Building Services
16/03/2017,Premises Management,BEERS BOUNDARY STREET,25.01,Repair & Maintenance,Building Services
16/03/2017,Premises Management,J BEATTIE & SON LT,10.49,Repair & Maintenance,Building Services
16/03/2017,Premises Management,J BEATTIE & SON LT,98.75,Repair & Maintenance,Building Services
16/03/2017,Premises Management,J BEATTIE & SON LT,18.43,Repair & Maintenance,Building Services
16/03/2017,Premises Management,PIPE/CLIMATE CENTER ZK,27.67,Repair & Maintenance,Building Services
16/03/2017,Premises Management,MERSEYSIDE ELECTRICAL,70.33,Repair & Maintenance,Building Services
16/03/2017,Premises Management,MERSEYSIDE ELECTRICAL,50.71,Repair & Maintenance,Building Services
16/03/2017,Premises Management,EDMUNDSON ELECTRIC,-108.53,Repair & Maintenance,Building Services
16/03/2017,Premises Management,EDMUNDSON ELECTRIC,150.97,Repair & Maintenance,Building Services
16/03/2017,Premises Management,RINUS ROOFING SUPPLIES,167.67,Repair & Maintenance,Building Services
16/03/2017,Premises Management,AQUASPRAY LTD,94.71,Repair & Maintenance,Building Services
16/03/2017,Premises Management,KEN KNIGHT (NW) LTD,258.33,Repair & Maintenance,Building Services
16/03/2017,Premises Management,ADI-GARDINER LTD,14.47,Repair & Maintenance,Building Services
16/03/2017,Premises Management,NEW KEY TRADING SERVIC,12.50,Repair & Maintenance,Building Services
17/03/2017,Premises Management,EDMUNDSON ELECTRIC,94.33,Repair & Maintenance,Building Services
17/03/2017,Premises Management,EDMUNDSON ELECTRIC,91.78,Repair & Maintenance,Building Services
17/03/2017,Premises Management,EDMUNDSON ELECTRIC,-107.80,Repair & Maintenance,Building Services
17/03/2017,Premises Management,EDMUNDSON ELECTRIC,192.04,Repair & Maintenance,Building Services
17/03/2017,Premises Management,ADI-GARDINER LTD,30.60,Repair & Maintenance,Building Services
17/03/2017,Premises Management,ADI-GARDINER LTD,32.03,Repair & Maintenance,Building Services
17/03/2017,Premises Management,ADI-GARDINER LTD,32.03,Repair & Maintenance,Building Services
17/03/2017,Premises Management,MERSEYSIDE ELECTRICAL,73.75,Repair & Maintenance,Building Services
17/03/2017,Premises Management,MERSEYSIDE ELECTRICAL,73.75,Repair & Maintenance,Building Services
17/03/2017,Premises Management,ENTERPRISE,34.72,Repair & Maintenance,Building Services
17/03/2017,Premises Management,EYRE & ELLISTON LTD,18.15,Repair & Maintenance,Building Services
17/03/2017,Premises Management,CROSSLING CMB LTD,21.67,Repair & Maintenance,Building Services
17/03/2017,Premises Management,ADI-GARDINER LTD,260.21,Repair & Maintenance,Building Services
17/03/2017,Premises Management,EDMUNDSON ELECTRIC,56.99,Repair & Maintenance,Building Services
17/03/2017,Premises Management,CROSSLING CMB LTD,32.28,Repair & Maintenance,Building Services
17/03/2017,Premises Management,York And Young Ltd,6.94,Repair & Maintenance,Building Services
17/03/2017,Premises Management,York And Young Ltd,6.94,Repair & Maintenance,Building Services
17/03/2017,Premises Management,MERSEYSIDE ELECTRICAL,86.25,Repair & Maintenance,Building Services
17/03/2017,Premises Management,EDMUNDSON ELECTRIC,11.08,Repair & Maintenance,Building Services
17/03/2017,Premises Management,EDMUNDSON ELECTRIC,11.61,Repair & Maintenance,Building Services
17/03/2017,Premises Management,EDMUNDSON ELECTRIC,13.33,Repair & Maintenance,Building Services
17/03/2017,Premises Management,COOPER FRAMING GALLERY,45.14,Repair & Maintenance,Building Services
17/03/2017,Premises Management,SPARES CENTRE LTD,182.21,Repair & Maintenance,Building Services
17/03/2017,Premises Management,SPARES CENTRE LTD,252.43,Repair & Maintenance,Building Services
17/03/2017,Premises Management,TOOLSTATION LTD,10.38,Repair & Maintenance,Building Services
17/03/2017,Premises Management,NEWEY & EYRE,20.21,Repair & Maintenance,Building Services
17/03/2017,Premises Management,ADI-GARDINER LTD,14.67,Repair & Maintenance,Building Services
17/03/2017,Premises Management,ADI-GARDINER LTD,69.86,Repair & Maintenance,Building Services
17/03/2017,Premises Management,EDMUNDSON ELECTRIC,24.66,Repair & Maintenance,Building Services
17/03/2017,Premises Management,EDMUNDSON ELECTRIC,30.13,Repair & Maintenance,Building Services
17/03/2017,Premises Management,B & Q 1297,4.86,Repair & Maintenance,Building Services
17/03/2017,Premises Management,J BEATTIE & SON LT,7.25,Repair & Maintenance,Building Services
17/03/2017,Premises Management,NEW KEY TRADING SERVIC,4.86,Repair & Maintenance,Building Services
17/03/2017,Premises Management,TASKERS NEW HUNTS,8.31,Repair & Maintenance,Building Services
20/03/2017,Premises Management,B & Q 1123,34.58,Repair & Maintenance,Building Services
20/03/2017,Premises Management,SCREWFIX,1.59,Repair & Maintenance,Building Services
20/03/2017,Premises Management,EDMUNDSON ELECTRIC,455.60,Repair & Maintenance,Building Services
20/03/2017,Premises Management,EDMUNDSON ELECTRIC,115.88,Repair & Maintenance,Building Services
20/03/2017,Premises Management,NEWEY & EYRE,34.36,Repair & Maintenance,Building Services
20/03/2017,Premises Management,CROSSLING CMB LTD,17.42,Repair & Maintenance,Building Services
20/03/2017,Premises Management,CROSSLING CMB LTD,23.08,Repair & Maintenance,Building Services
20/03/2017,Premises Management,York And Young Ltd,6.60,Repair & Maintenance,Building Services
20/03/2017,Premises Management,York And Young Ltd,6.94,Repair & Maintenance,Building Services
20/03/2017,Premises Management,HOWDENS - LIVERPOOL D7,204.17,Repair & Maintenance,Building Services
20/03/2017,Premises Management,CROSSLING CMB LTD,36.70,Repair & Maintenance,Building Services
20/03/2017,Premises Management,CROSSLING CMB LTD,2.38,Repair & Maintenance,Building Services
20/03/2017,Premises Management,MERSEYSIDE ELECTRICAL,26.83,Repair & Maintenance,Building Services
20/03/2017,Premises Management,ADI-GARDINER LTD,20.88,Repair & Maintenance,Building Services
20/03/2017,Premises Management,MERSEYSIDE ELECTRICAL,26.25,Repair & Maintenance,Building Services
20/03/2017,Premises Management,EDMUNDSON ELECTRIC,10.42,Repair & Maintenance,Building Services
20/03/2017,Premises Management,EDMUNDSON ELECTRIC,82.83,Repair & Maintenance,Building Services
20/03/2017,Premises Management,EDMUNDSON ELECTRIC,22.16,Repair & Maintenance,Building Services
20/03/2017,Premises Management,J BEATTIE & SON LT,7.33,Repair & Maintenance,Building Services
21/03/2017,Premises Management,B.E.S. ELECTRICAL WHOL,81.33,Repair & Maintenance,Building Services
21/03/2017,Premises Management,B.E.S. ELECTRICAL WHOL,16.08,Repair & Maintenance,Building Services
21/03/2017,Premises Management,EYRE & ELLISTON LTD,42.44,Repair & Maintenance,Building Services
21/03/2017,Premises Management,STAPLES UK,19.03,Repair & Maintenance,Building Services
21/03/2017,Premises Management,ADI-GARDINER LTD,17.70,Repair & Maintenance,Building Services
21/03/2017,Premises Management,EYRE & ELLISTON LTD,74.30,Repair & Maintenance,Building Services
21/03/2017,Premises Management,NEWEY & EYRE,7.35,Repair & Maintenance,Building Services
21/03/2017,Premises Management,NEWEY & EYRE,95.70,Repair & Maintenance,Building Services
21/03/2017,Premises Management,NEWEY & EYRE,17.52,Repair & Maintenance,Building Services
21/03/2017,Premises Management,NEWEY & EYRE,43.28,Repair & Maintenance,Building Services
21/03/2017,Premises Management,CROSSLING CMB LTD,223.33,Repair & Maintenance,Building Services
21/03/2017,Premises Management,SCREWFIX DIRECT LT,0.76,Repair & Maintenance,Building Services
21/03/2017,Premises Management,PIPE/CLIMATE CENTER ZK,13.75,Repair & Maintenance,Building Services
21/03/2017,Premises Management,MERSEYSIDE ELECTRICAL,240.83,Repair & Maintenance,Building Services
21/03/2017,Premises Management,NEW KEY TRADING SERVIC,381.94,Repair & Maintenance,Building Services
21/03/2017,Premises Management,AMAZON UK RETAIL AMAZON.C,20.31,Repair & Maintenance,Building Services
21/03/2017,Premises Management,KEN KNIGHT (NW) LTD,280.83,Repair & Maintenance,Building Services
22/03/2017,Premises Management,CHADWICKS,21.25,Repair & Maintenance,Building Services
22/03/2017,Premises Management,SMITHDOWN ELECTRICAL W,11.33,Repair & Maintenance,Building Services
22/03/2017,Premises Management,EDMUNDSON ELECTRIC,16.85,Repair & Maintenance,Building Services
22/03/2017,Premises Management,EDMUNDSON ELECTRIC,26.60,Repair & Maintenance,Building Services
22/03/2017,Premises Management,EDMUNDSON ELECTRIC,13.84,Repair & Maintenance,Building Services
22/03/2017,Premises Management,EDMUNDSON ELECTRIC,9.93,Repair & Maintenance,Building Services
22/03/2017,Premises Management,CROSSLING CMB LTD,14.87,Repair & Maintenance,Building Services
22/03/2017,Premises Management,SPARES CENTRE LTD,651.76,Repair & Maintenance,Building Services
22/03/2017,Premises Management,EDMUNDSON ELECTRIC,8.92,Repair & Maintenance,Building Services
22/03/2017,Premises Management,CROSSLING CMB LTD,21.61,Repair & Maintenance,Building Services
22/03/2017,Premises Management,CROSSLING CMB LTD,397.81,Repair & Maintenance,Building Services
22/03/2017,Premises Management,MERSEYSIDE ELECTRICAL,74.49,Repair & Maintenance,Building Services
22/03/2017,Premises Management,TOOLSTATION LTD,10.44,Repair & Maintenance,Building Services
22/03/2017,Premises Management,EDMUNDSON ELECTRIC,17.53,Repair & Maintenance,Building Services
22/03/2017,Premises Management,DULUX DECORATOR CENTRE,109.86,Repair & Maintenance,Building Services
22/03/2017,Premises Management,Amazon UK Marketplace,20.48,Repair & Maintenance,Building Services
22/03/2017,Premises Management,Amazon UK Marketplace,8.32,Repair & Maintenance,Building Services
22/03/2017,Premises Management,CLAS OHLSON,11.10,Repair & Maintenance,Building Services
22/03/2017,Premises Management,RAPID,3.81,Repair & Maintenance,Building Services
22/03/2017,Premises Management,ADI-GARDINER LTD,10.83,Repair & Maintenance,Building Services
22/03/2017,Premises Management,EDMUNDSON ELECTRIC,65.60,Repair & Maintenance,Building Services
22/03/2017,Premises Management,ADI-GARDINER LTD,19.97,Repair & Maintenance,Building Services
22/03/2017,Premises Management,TASKERS WAVERTREE,58.92,Repair & Maintenance,Building Services
23/03/2017,Premises Management,PINNACLE ELECTRICA,45.83,Repair & Maintenance,Building Services
23/03/2017,Premises Management,PINNACLE ELECTRICA,376.17,Repair & Maintenance,Building Services
23/03/2017,Premises Management,PINNACLE ELECTRICA,116.67,Repair & Maintenance,Building Services
23/03/2017,Premises Management,EDMUNDSON ELECTRIC,94.74,Repair & Maintenance,Building Services
23/03/2017,Premises Management,ENTERPRISE,-34.72,Repair & Maintenance,Building Services
23/03/2017,Premises Management,PIPE/CLIMATE CENTER ZK,42.32,Repair & Maintenance,Building Services
23/03/2017,Premises Management,PIPE/CLIMATE CENTER ZK,615.00,Repair & Maintenance,Building Services
23/03/2017,Premises Management,O2 MBB,41.67,Repair & Maintenance,Building Services
23/03/2017,Premises Management,SAFETY SYSTEMS DIS,281.25,Repair & Maintenance,Building Services
23/03/2017,Premises Management,PIPE/CLIMATE CENTER ZK,"1,138.10",Repair & Maintenance,Building Services
23/03/2017,Premises Management,SPARES CENTRE LTD,400.83,Repair & Maintenance,Building Services
23/03/2017,Premises Management,NEWEY & EYRE,93.30,Repair & Maintenance,Building Services
23/03/2017,Premises Management,NEWEY & EYRE,43.37,Repair & Maintenance,Building Services
23/03/2017,Premises Management,CROSSLING CMB LTD,10.21,Repair & Maintenance,Building Services
23/03/2017,Premises Management,BEERS BOUNDARY STREET,17.15,Repair & Maintenance,Building Services
23/03/2017,Premises Management,CROSSLING CMB LTD,216.75,Repair & Maintenance,Building Services
23/03/2017,Premises Management,MERSEYSIDE ELECTRICAL,315.00,Repair & Maintenance,Building Services
23/03/2017,Premises Management,EDMUNDSON ELECTRIC,1.80,Repair & Maintenance,Building Services
23/03/2017,Premises Management,EDMUNDSON ELECTRIC,91.26,Repair & Maintenance,Building Services
23/03/2017,Premises Management,EDMUNDSON ELECTRIC,89.79,Repair & Maintenance,Building Services
23/03/2017,Premises Management,EDMUNDSON ELECTRIC,232.17,Repair & Maintenance,Building Services
23/03/2017,Premises Management,EDMUNDSON ELECTRIC,30.31,Repair & Maintenance,Building Services
23/03/2017,Premises Management,HOBS REPROGRAPHICS,10.42,Repair & Maintenance,Building Services
23/03/2017,Premises Management,KEN KNIGHT (NW) LTD,161.67,Repair & Maintenance,Building Services
23/03/2017,Premises Management,SPARES CENTRE LTD,387.50,Repair & Maintenance,Building Services
23/03/2017,Premises Management,LLOYD & JONES ENGINEER,11.99,Repair & Maintenance,Building Services
23/03/2017,Premises Management,SCREWFIX,3.05,Repair & Maintenance,Building Services
23/03/2017,Premises Management,BEERS BOUNDARY STREET,235.65,Repair & Maintenance,Building Services
23/03/2017,Premises Management,ADI-GARDINER LTD,76.33,Repair & Maintenance,Building Services
23/03/2017,Premises Management,NEW KEY TRADING SERVIC,13.89,Repair & Maintenance,Building Services
23/03/2017,Premises Management,NEW KEY TRADING SERVIC,17.36,Repair & Maintenance,Building Services
24/03/2017,Premises Management,EDMUNDSON ELECTRIC,81.63,Repair & Maintenance,Building Services
24/03/2017,Premises Management,THOMAS AND NELSON,6.25,Repair & Maintenance,Building Services
24/03/2017,Premises Management,MERSEYSIDE ELECTRICAL,37.88,Repair & Maintenance,Building Services
24/03/2017,Premises Management,MERSEYSIDE ELECTRICAL,26.67,Repair & Maintenance,Building Services
24/03/2017,Premises Management,MERSEYSIDE ELECTRICAL,157.50,Repair & Maintenance,Building Services
24/03/2017,Premises Management,MERSEYSIDE ELECTRICAL,80.00,Repair & Maintenance,Building Services
24/03/2017,Premises Management,WWW.FACELIFT.CO.UK,325.00,Repair & Maintenance,Building Services
24/03/2017,Premises Management,NEWEY & EYRE,112.39,Repair & Maintenance,Building Services
24/03/2017,Premises Management,ADI-GARDINER LTD,"1,036.06",Repair & Maintenance,Building Services
24/03/2017,Premises Management,EDMUNDSON ELECTRIC,5.58,Repair & Maintenance,Building Services
24/03/2017,Premises Management,NEWEY & EYRE,6.81,Repair & Maintenance,Building Services
24/03/2017,Premises Management,NEWEY & EYRE,34.52,Repair & Maintenance,Building Services
24/03/2017,Premises Management,CROSSLING CMB LTD,14.32,Repair & Maintenance,Building Services
24/03/2017,Premises Management,CROSSLING CMB LTD,109.26,Repair & Maintenance,Building Services
24/03/2017,Premises Management,CROSSLING CMB LTD,21.11,Repair & Maintenance,Building Services
24/03/2017,Premises Management,CROSSLING CMB LTD,1.78,Repair & Maintenance,Building Services
24/03/2017,Premises Management,MERSEYSIDE ELECTRICAL,96.46,Repair & Maintenance,Building Services
24/03/2017,Premises Management,TARGET ELECTRICAL SUPP,616.67,Repair & Maintenance,Building Services
24/03/2017,Premises Management,NEWEY & EYRE,93.19,Repair & Maintenance,Building Services
24/03/2017,Premises Management,J BEATTIE & SON LT,7.25,Repair & Maintenance,Building Services
24/03/2017,Premises Management,J BEATTIE & SON LT,23.22,Repair & Maintenance,Building Services
24/03/2017,Premises Management,J BEATTIE & SON LT,16.03,Repair & Maintenance,Building Services
24/03/2017,Premises Management,J BEATTIE & SON LT,9.88,Repair & Maintenance,Building Services
24/03/2017,Premises Management,J BEATTIE & SON LT,34.83,Repair & Maintenance,Building Services
24/03/2017,Premises Management,MERSEYSIDE ELECTRICAL,125.21,Repair & Maintenance,Building Services
24/03/2017,Premises Management,MERSEYSIDE ELECTRICAL,29.13,Repair & Maintenance,Building Services
24/03/2017,Premises Management,ONE STOP HIRE LIVERP,50.00,Repair & Maintenance,Building Services
24/03/2017,Premises Management,ONE STOP HIRE LIVERP,45.66,Repair & Maintenance,Building Services
24/03/2017,Premises Management,J BEATTIE & SON LT,7.50,Repair & Maintenance,Building Services
24/03/2017,Premises Management,TASKERS AINTREE,24.58,Repair & Maintenance,Building Services
24/03/2017,Premises Management,RINUS ROOFING SUPPLIES,140.33,Repair & Maintenance,Building Services
24/03/2017,Premises Management,ADI-GARDINER LTD,28.92,Repair & Maintenance,Building Services
24/03/2017,Premises Management,EDMUNDSON ELECTRIC,39.69,Repair & Maintenance,Building Services
24/03/2017,Premises Management,ADI-GARDINER LTD,227.97,Repair & Maintenance,Building Services
24/03/2017,Premises Management,MAPLIN AINTREE L9,22.91,Repair & Maintenance,Building Services
27/03/2017,Premises Management,EDMUNDSON ELECTRIC,16.28,Repair & Maintenance,Building Services
27/03/2017,Premises Management,ADI-GARDINER LTD,63.08,Repair & Maintenance,Building Services
27/03/2017,Premises Management,NATIONAL LIGHTING,0.25,Repair & Maintenance,Building Services
27/03/2017,Premises Management,CITY PLUMBING SUPP,4.78,Repair & Maintenance,Building Services
27/03/2017,Premises Management,CITY PLUMBING SUPP,13.33,Repair & Maintenance,Building Services
27/03/2017,Premises Management,EYRE & ELLISTON LTD,18.17,Repair & Maintenance,Building Services
27/03/2017,Premises Management,CROSSLING CMB LTD,1.83,Repair & Maintenance,Building Services
27/03/2017,Premises Management,MERSEYSIDE ELECTRICAL,30.76,Repair & Maintenance,Building Services
27/03/2017,Premises Management,BEERS BOUNDARY STREET,55.10,Repair & Maintenance,Building Services
27/03/2017,Premises Management,BEERS BOUNDARY STREET,8.67,Repair & Maintenance,Building Services
27/03/2017,Premises Management,AA FENCING UK LTD,252.00,Repair & Maintenance,Building Services
27/03/2017,Premises Management,LLOYD & JONES ENGINEER,4.19,Repair & Maintenance,Building Services
27/03/2017,Premises Management,BEERS BOUNDARY STREET,41.07,Repair & Maintenance,Building Services
27/03/2017,Premises Management,TASKERS WAVERTREE,24.97,Repair & Maintenance,Building Services
28/03/2017,Premises Management,CROSSLING CMB LTD,46.25,Repair & Maintenance,Building Services
28/03/2017,Premises Management,CITY ELECTRICAL FA,67.92,Repair & Maintenance,Building Services
28/03/2017,Premises Management,EDMUNDSON ELECTRIC,110.76,Repair & Maintenance,Building Services
28/03/2017,Premises Management,EDMUNDSON ELECTRIC,10.99,Repair & Maintenance,Building Services
28/03/2017,Premises Management,EDMUNDSON ELECTRIC,47.15,Repair & Maintenance,Building Services
28/03/2017,Premises Management,EDMUNDSON ELECTRIC,6.83,Repair & Maintenance,Building Services
28/03/2017,Premises Management,CITY PLUMBING SUPP,40.66,Repair & Maintenance,Building Services
28/03/2017,Premises Management,CITY PLUMBING SUPP,41.05,Repair & Maintenance,Building Services
28/03/2017,Premises Management,PIPE/CLIMATE CENTER ZK,73.83,Repair & Maintenance,Building Services
28/03/2017,Premises Management,SMITHDOWN ELECTRICAL W,5.92,Repair & Maintenance,Building Services
28/03/2017,Premises Management,RINUS ROOFING SUPPLIES,50.75,Repair & Maintenance,Building Services
28/03/2017,Premises Management,THOMAS AND NELSON,17.22,Repair & Maintenance,Building Services
28/03/2017,Premises Management,CROSSLING CMB LTD,11.67,Repair & Maintenance,Building Services
28/03/2017,Premises Management,NEWEY & EYRE,13.21,Repair & Maintenance,Building Services
28/03/2017,Premises Management,CHADWICKS,14.67,Repair & Maintenance,Building Services
28/03/2017,Premises Management,CROSSLING CMB LTD,21.50,Repair & Maintenance,Building Services
28/03/2017,Premises Management,York And Young Ltd,13.33,Repair & Maintenance,Building Services
28/03/2017,Premises Management,PIPE/CLIMATE CENTER ZK,96.93,Repair & Maintenance,Building Services
28/03/2017,Premises Management,DULUX DECORATOR CENTRE,164.99,Repair & Maintenance,Building Services
28/03/2017,Premises Management,ADI-GARDINER LTD,42.56,Repair & Maintenance,Building Services
28/03/2017,Premises Management,B & Q 1123,21.70,Repair & Maintenance,Building Services
28/03/2017,Premises Management,EDMUNDSON ELECTRIC,133.37,Repair & Maintenance,Building Services
28/03/2017,Premises Management,EDMUNDSON ELECTRIC,135.92,Repair & Maintenance,Building Services
28/03/2017,Premises Management,ADI-GARDINER LTD,19.57,Repair & Maintenance,Building Services
28/03/2017,Premises Management,TOOLSTATION LTD,3.82,Repair & Maintenance,Building Services
28/03/2017,Premises Management,BEERS BOUNDARY STREET,36.34,Repair & Maintenance,Building Services
29/03/2017,Premises Management,B.E.S. ELECTRICAL WHOL,8.54,Repair & Maintenance,Building Services
29/03/2017,Premises Management,B.E.S. ELECTRICAL WHOL,340.47,Repair & Maintenance,Building Services
29/03/2017,Premises Management,B.E.S. ELECTRICAL WHOL,32.08,Repair & Maintenance,Building Services
29/03/2017,Premises Management,ADI-GARDINER LTD,24.25,Repair & Maintenance,Building Services
29/03/2017,Premises Management,B & Q 1132,21.97,Repair & Maintenance,Building Services
29/03/2017,Premises Management,TOOLSTATION LTD,33.00,Repair & Maintenance,Building Services
29/03/2017,Premises Management,SCREWFIX,10.40,Repair & Maintenance,Building Services
29/03/2017,Premises Management,LLOYD & JONES ENGINEER,21.36,Repair & Maintenance,Building Services
29/03/2017,Premises Management,ADI-GARDINER LTD,-670.92,Repair & Maintenance,Building Services
29/03/2017,Premises Management,ADI-GARDINER LTD,630.80,Repair & Maintenance,Building Services
29/03/2017,Premises Management,WWW.MAPLIN.CO.UK,90.27,Repair & Maintenance,Building Services
29/03/2017,Premises Management,TARGET ELECTRICAL SUPP,116.67,Repair & Maintenance,Building Services
29/03/2017,Premises Management,TASKERS WAVERTREE,6.93,Repair & Maintenance,Building Services
29/03/2017,Premises Management,RINUS ROOFING SUPPLIES,83.50,Repair & Maintenance,Building Services
29/03/2017,Premises Management,KEN KNIGHT (NW) LTD,308.33,Repair & Maintenance,Building Services
29/03/2017,Premises Management,J BEATTIE & SON LT,207.50,Repair & Maintenance,Building Services
29/03/2017,Premises Management,EDMUNDSON ELECTRIC,227.63,Repair & Maintenance,Building Services
29/03/2017,Premises Management,HIGSON EDWARDS,13.89,Repair & Maintenance,Building Services
29/03/2017,Premises Management,BEERS BOUNDARY STREET,9.01,Repair & Maintenance,Building Services
29/03/2017,Premises Management,BEERS BOUNDARY STREET,28.71,Repair & Maintenance,Building Services
30/03/2017,Premises Management,PIPE/CLIMATE CENTER ZK,67.58,Repair & Maintenance,Building Services
30/03/2017,Premises Management,PIPE/CLIMATE CENTER ZK,164.16,Repair & Maintenance,Building Services
30/03/2017,Premises Management,PIPE/CLIMATE CENTER ZK,795.00,Repair & Maintenance,Building Services
30/03/2017,Premises Management,EDMUNDSON ELECTRIC,4.49,Repair & Maintenance,Building Services
30/03/2017,Premises Management,CROSSLING CMB LTD,19.28,Repair & Maintenance,Building Services
30/03/2017,Premises Management,TAYLORGLASS LTD,48.33,Repair & Maintenance,Building Services
30/03/2017,Premises Management,TAYLORGLASS LTD,77.50,Repair & Maintenance,Building Services
30/03/2017,Premises Management,SCREWFIX,20.83,Repair & Maintenance,Building Services
30/03/2017,Premises Management,TARGET ELECTRICAL SUPP,1.40,Repair & Maintenance,Building Services
30/03/2017,Premises Management,TARGET ELECTRICAL SUPP,48.42,Repair & Maintenance,Building Services
30/03/2017,Premises Management,TARGET ELECTRICAL SUPP,43.58,Repair & Maintenance,Building Services
30/03/2017,Premises Management,TASKERS AINTREE,18.70,Repair & Maintenance,Building Services
30/03/2017,Premises Management,FLG,190.30,Repair & Maintenance,Building Services
30/03/2017,Premises Management,BUYABATTERY CO UK,185.28,Repair & Maintenance,Building Services
30/03/2017,Premises Management,ONE STOP HIRE LIVERP,23.21,Repair & Maintenance,Building Services
30/03/2017,Premises Management,S & D ATHERTON LTD,37.50,Repair & Maintenance,Building Services
30/03/2017,Premises Management,J BEATTIE & SON LT,12.79,Repair & Maintenance,Building Services
30/03/2017,Premises Management,J BEATTIE & SON LT,10.49,Repair & Maintenance,Building Services
30/03/2017,Premises Management,TAYLORGLASS LTD,49.75,Repair & Maintenance,Building Services
30/03/2017,Premises Management,TAYLORGLASS LTD,49.58,Repair & Maintenance,Building Services
30/03/2017,Premises Management,TOOLSTATION LTD,26.38,Repair & Maintenance,Building Services
30/03/2017,Premises Management,TOOLSTATION LTD,24.97,Repair & Maintenance,Building Services
30/03/2017,Premises Management,TOOLSTATION LTD,2.75,Repair & Maintenance,Building Services
30/03/2017,Premises Management,J BEATTIE & SON LT,23.15,Repair & Maintenance,Building Services
30/03/2017,Premises Management,York And Young Ltd,12.86,Repair & Maintenance,Building Services
31/03/2017,Premises Management,CROSSLING CMB LTD,16.24,Repair & Maintenance,Building Services
31/03/2017,Premises Management,SCREWFIX,34.71,Repair & Maintenance,Building Services
31/03/2017,Premises Management,CITY ELECTRICAL FA,3.08,Repair & Maintenance,Building Services
31/03/2017,Premises Management,ADI-GARDINER LTD,71.67,Repair & Maintenance,Building Services
31/03/2017,Premises Management,LAIDLAW LTD,280.28,Repair & Maintenance,Building Services
31/03/2017,Premises Management,CROSSLING CMB LTD,40.53,Repair & Maintenance,Building Services
31/03/2017,Premises Management,CROSSLING CMB LTD,28.49,Repair & Maintenance,Building Services
31/03/2017,Premises Management,PIPE/CLIMATE CENTER ZK,127.47,Repair & Maintenance,Building Services
31/03/2017,Premises Management,SMITHDOWN ELECTRICAL W,5.42,Repair & Maintenance,Building Services
31/03/2017,Premises Management,O2 MBB,6.94,Repair & Maintenance,Building Services
31/03/2017,Premises Management,HOME SECURE LOCK & GLA,144.00,Repair & Maintenance,Building Services
31/03/2017,Premises Management,MERSEYSIDE ELECTRICAL,18.29,Repair & Maintenance,Building Services
31/03/2017,Premises Management,MERSEYSIDE ELECTRICAL,63.21,Repair & Maintenance,Building Services
31/03/2017,Premises Management,MERSEYSIDE ELECTRICAL,160.00,Repair & Maintenance,Building Services
31/03/2017,Premises Management,MERSEYSIDE ELECTRICAL,73.82,Repair & Maintenance,Building Services
31/03/2017,Premises Management,NEW KEY TRADING SERVIC,41.67,Repair & Maintenance,Building Services
31/03/2017,Premises Management,PIPE/CLIMATE CENTERG64,52.85,Repair & Maintenance,Building Services
31/03/2017,Premises Management,KEN KNIGHT (NW) LTD,162.50,Repair & Maintenance,Building Services
31/03/2017,Premises Management,TOOLSTATION LTD,14.17,Repair & Maintenance,Building Services
31/03/2017,Premises Management,RINUS ROOFING SUPPLIES,95.00,Repair & Maintenance,Building Services
31/03/2017,Premises Management,RINUS ROOFING SUPPLIES,171.67,Repair & Maintenance,Building Services
31/03/2017,Premises Management,RINUS ROOFING SUPPLIES,49.58,Repair & Maintenance,Building Services
31/03/2017,Premises Management,B & Q 1132,17.65,Repair & Maintenance,Building Services
02/03/2017,Chief Executive,CLAS OHLSON,29.15,ICT Cables,Computer Services
02/03/2017,Chief Executive,CLAS OHLSON,24.98,ICT Cables,Computer Services
09/03/2017,Procurement,Sweet & Maxwell,55.68,Tender Contract,Professional Services
10/03/2017,Regeneration,APPLE,499.17,Iphone,Telecomms
20/03/2017,Communications,Williams Lea Tag,21.25,Public Notice,Print & Advertising
21/03/2017,ICT,Media Temple,292.02,Web Hosting,Computer Network Services
24/03/2017,Procurement,Chartered Institute of Procurement & Supply,99.96,Exam Fee,Training & Educational
24/03/2017,Public Health,Intellectual Property Office,170.00,Trademark,Government Services
24/03/2017,Public Health,Hotjar Ltd,78.03,Licence,Miscellaneous
21/03/2017,Culture,Brolliesgalore,8.25,Sgt Peppers Photo,Print & Advertising
21/03/2017,Culture,Brolliesgalore,90.88,Sgt Peppers Photo,Print & Advertising
31/03/2017,Culture,Elbrnis Travel,132.78,Cruise Conference,Travel
31/03/2017,Culture,Elbrnis Travel,132.78,Cruise Conference,Travel
